fUST/lending_fUST_20250209
["ID","MTS","AMOUNT","RATE_DAILY","PERIOD"]
[352311100,1739037044902,-719.84,0.00011917,2]
[352311101,1739037044912,-1030.25,0.00011917,2]
[352311102,1739037044921,-2134.61,0.00011917,2]
[352311103,1739037044931,-500.0,0.00011917,2]
[352311104,1739037044941,-1216.47,0.00011917,2]
[352311105,1739037044951,-650.23,0.00011917,2]
[352311106,1739037044960,-1149.69,0.00011917,2]
[352311107,1739037044970,-898.24,0.00011917,2]
[352311108,1739037044979,-500.0,0.00011917,2]
[352311109,1739037044989,-8241.23,0.00011917,2]
[352311110,1739037044999,-761.98,0.00011917,2]
[352311111,1739037045008,-500.0,0.00011917,2]
[352311112,1739037045018,-836.05,0.00011917,2]
[352311113,1739037045028,-2585.72,0.00011917,2]
[352311114,1739037045037,-860.07,0.00011917,2]
[352311115,1739037045047,-500.0,0.00011917,2]
[352311116,1739037045055,-1107.41,0.00011917,2]
[352311117,1739037045064,-500.0,0.00011917,2]
[352311118,1739037045074,-500.0,0.00011917,2]
[352311119,1739037045083,-1876.05,0.00011917,2]
[352311120,1739037045092,-500.0,0.00011917,2]
[352311121,1739037045102,-500.0,0.00011917,2]
[352311122,1739037045111,-858.41,0.00011917,2]
[352311124,1739037045121,-500.0,0.00011917,2]
[352311125,1739037045130,-500.0,0.00011917,2]
[352311126,1739037045140,-500.0,0.00011917,2]
[352311127,1739037045149,-4495.15,0.00011917,2]
[352311128,1739037045159,-1820.53,0.00011917,2]
[352311129,1739037045168,-500.0,0.00011917,2]
[352311130,1739037045177,-1798.46,0.00011917,2]
[352311131,1739037045187,-500.0,0.00011917,2]
[352311132,1739037045196,-835.94,0.00011917,2]
[352311133,1739037045205,-2203.81,0.00011917,2]
[352311134,1739037045215,-2052.02,0.00011917,2]
[352311135,1739037045225,-778.74,0.00011917,2]
[352311136,1739037045234,-894.43,0.00011917,2]
[352311137,1739037045244,-688.29,0.00011917,2]
[352311138,1739037045254,-9412.92,0.00011917,2]
[352311139,1739037045264,-500.0,0.00011917,2]
[352311140,1739037045274,-500.0,0.00011917,2]
[352311141,1739037045283,-525.36,0.00011917,2]
[352311142,1739037045292,-558.92,0.00011917,2]
[352311143,1739037045302,-931.18,0.00011917,2]
[352311144,1739037045311,-657.17,0.00011917,2]
[352311145,1739037045320,-1377.28,0.00011917,2]
[352311146,1739037045330,-679.32,0.00011917,2]
[352311147,1739037045342,-500.0,0.00011917,2]
[352311148,1739037045352,-616.8,0.00011917,2]
[352311149,1739037045361,-3171.37,0.00011917,2]
[352311150,1739037045370,-849.25,0.00011917,2]
[352311151,1739037045380,-6616.4375202,0.00011917,2]
[352311185,1739037046868,-351.59094771,0.00010958,2]
[352311320,1739038232041,-291.37338982,0.00010003,2]
[352311322,1739038232054,-8.62661018,0.00010003,2]
[352311324,1739038232064,-365.00746132,0.00010004,2]
[352311328,1739038232100,-12250.22344908,0.00010004,2]
[352311330,1739038232111,-400.0,0.00010685,2]
[352311332,1739038232120,-220.19564891,0.00010858,2]
[352311335,1739038232131,-8004.58090201,0.00010957,2]
[352311337,1739038232142,-3867.13422877,0.00010957,2]
[352311339,1739038232152,-401.86317812,0.00010957,2]
[352311341,1739038232161,-500.0,0.00010957,2]
[352311343,1739038232171,-159.5736635,0.00010957,2]
[352311345,1739038232182,-446.51464235,0.00010957,2]
[352311347,1739038232200,-500.0,0.00010957,2]
[352311349,1739038232212,-500.0,0.00010957,2]
[352311351,1739038232222,-500.0,0.00010957,2]
[352311353,1739038232231,-500.0,0.00010957,2]
[352311355,1739038232240,-500.0,0.00010957,2]
[352311357,1739038232250,-500.0,0.00010957,2]
[352311359,1739038232260,-500.0,0.00010957,2]
[352311361,1739038232270,-363.87182595,0.00010957,2]
[352311363,1739038232279,-500.0,0.00010958,2]
[352311365,1739038232290,-500.0,0.00010958,2]
[352311367,1739038232300,-503.39640217,0.00010958,2]
[352311369,1739038232309,-500.0,0.00010958,2]
[352311371,1739038232319,-500.0,0.00010958,2]
[352311373,1739038232328,-500.0,0.00010958,2]
[352311375,1739038232338,-500.0,0.00010958,2]
[352311377,1739038232348,-500.0,0.00010958,2]
[352311379,1739038232357,-500.0,0.00010958,2]
[352311380,1739038232367,-500.0,0.00010958,2]
[352311382,1739038232375,-509.73929092,0.00010958,2]
[352311384,1739038232385,-509.53504905,0.00010958,2]
[352311385,1739038232394,-502.8033735,0.00010958,2]
[352311387,1739038232403,-500.0,0.00010958,2]
[352311389,1739038232412,-500.0,0.00010958,2]
[352311391,1739038232422,-502.01452723,0.00010958,2]
[352311393,1739038232434,-565.69982765,0.00010958,2]
[352311395,1739038232444,-500.434845,0.00010958,2]
[352311397,1739038232453,-501.36623284,0.00010958,2]
[352311399,1739038232462,-500.0,0.00010958,2]
[352311401,1739038232472,-500.0,0.00010958,2]
[352311402,1739038232481,-500.0,0.00010958,2]
[352311404,1739038232491,-200.9,0.00010958,2]
[352311406,1739038232501,-503.01820788,0.00010958,2]
[352311408,1739038232510,-500.60622267,0.00010958,2]
[352311410,1739038232520,-500.0,0.00010958,2]
[352311411,1739038232530,-500.0,0.00010958,2]
[352311413,1739038232539,-500.0,0.00010958,2]
[352311415,1739038232549,-649.0401394,0.00010958,2]
[352311417,1739038232558,-500.0,0.00010958,2]
[352311419,1739038232568,-377.64123151,0.00010958,2]
[352311421,1739038232577,-500.0,0.00010958,2]
[352311423,1739038232587,-500.0,0.00010958,2]
[352311424,1739038232596,-500.0,0.00010958,2]
[352311426,1739038232605,-500.0,0.00010958,2]
[352311428,1739038232615,-500.0,0.00010958,2]
[352311430,1739038232624,-500.0,0.00010958,2]
[352311432,1739038232633,-500.0,0.00010958,2]
[352311434,1739038232644,-500.0,0.00010958,2]
[352311436,1739038232654,-500.0,0.00010958,2]
[352311437,1739038232663,-500.0,0.00010958,2]
[352311439,1739038232674,-500.0,0.00010958,2]
[352311441,1739038232684,-500.0,0.00010958,2]
[352311443,1739038232693,-501.38079044,0.00010958,2]
[352311445,1739038232703,-500.0,0.00010958,2]
[352311447,1739038232712,-500.0,0.00010958,2]
[352311448,1739038232721,-508.62066582,0.00010958,2]
[352311450,1739038232730,-504.78950885,0.00010958,2]
[352311452,1739038232740,-500.0,0.00010958,2]
[352311454,1739038232753,-500.0,0.00010958,2]
[352311456,1739038232762,-278.10118526,0.00010958,2]
[352311458,1739038232771,-500.0,0.00010958,2]
[352311459,1739038232781,-500.0,0.00010958,2]
[352311461,1739038232791,-500.0,0.00010958,2]
[352311463,1739038232801,-500.0,0.00010958,2]
[352311465,1739038232810,-500.0,0.00010958,2]
[352311467,1739038232820,-500.0,0.00010958,2]
[352311469,1739038232830,-500.0,0.00010958,2]
[352311471,1739038232840,-500.0,0.00010958,2]
[352311472,1739038232849,-500.0,0.00010958,2]
[352311474,1739038232859,-500.0,0.00010958,2]
[352311476,1739038232869,-500.0,0.00010958,2]
[352311478,1739038232878,-500.0,0.00010958,2]
[352311480,1739038232888,-300.0,0.00010958,2]
[352311482,1739038232898,-583.99,0.00010958,2]
[352311484,1739038232907,-500.0,0.00010958,2]
[352311485,1739038232916,-500.0,0.00010958,2]
[352311487,1739038232926,-500.0,0.00010958,2]
[352311489,1739038232936,-492.76477719,0.00010958,2]
[352311491,1739038232945,-500.0,0.00010958,2]
[352311493,1739038232954,-209.95370714,0.00010958,2]
[352311495,1739038232963,-500.0,0.00010958,2]
[352311497,1739038232973,-500.0,0.00010958,2]
[352311498,1739038232990,-500.62535248,0.00010958,2]
[352311500,1739038232999,-500.0,0.00010958,2]
[352311502,1739038233009,-500.0,0.00010958,2]
[352311504,1739038233018,-500.0,0.00010958,2]
[352311506,1739038233027,-500.0,0.00010958,2]
[352311508,1739038233038,-500.0,0.00010958,2]
[352311510,1739038233048,-500.0,0.00010958,2]
[352311512,1739038233057,-500.0,0.00010958,2]
[352311513,1739038233066,-522.32232211,0.00010958,2]
[352311515,1739038233075,-500.0,0.00010958,2]
[352311517,1739038233085,-500.0,0.00010958,2]
[352311519,1739038233094,-500.0,0.00010958,2]
[352311521,1739038233104,-500.0,0.00010958,2]
[352311523,1739038233114,-500.0,0.00010958,2]
[352311525,1739038233124,-500.0,0.00010958,2]
[352311527,1739038233134,-500.0,0.00010958,2]
[352311529,1739038233144,-500.0,0.00010958,2]
[352311531,1739038233153,-500.0,0.00010958,2]
[352311532,1739038233164,-500.0,0.00010958,2]
[352311534,1739038233173,-500.0,0.00010958,2]
[352311536,1739038233183,-500.0,0.00010958,2]
[352311538,1739038233193,-500.0,0.00010958,2]
[352311540,1739038233204,-500.0,0.00010958,2]
[352311542,1739038233214,-500.0,0.00010958,2]
[352311544,1739038233224,-500.0,0.00010958,2]
[352311546,1739038233234,-500.0,0.00010958,2]
[352311548,1739038233245,-500.0,0.00010958,2]
[352311550,1739038233254,-500.0,0.00010958,2]
[352311552,1739038233264,-516.57576973,0.00010958,2]
[352311553,1739038233273,-500.0,0.00010958,2]
[352311555,1739038233283,-500.0,0.00010958,2]
[352311557,1739038233292,-500.0,0.00010958,2]
[352311559,1739038233303,-500.0,0.00010958,2]
[352311561,1739038233312,-500.0,0.00010958,2]
[352311563,1739038233322,-500.0,0.00010958,2]
[352311565,1739038233332,-500.0,0.00010958,2]
[352311566,1739038233342,-500.0,0.00010958,2]
[352311568,1739038233352,-500.0,0.00010958,2]
[352311570,1739038233361,-500.0,0.00010958,2]
[352311572,1739038233370,-500.0,0.00010958,2]
[352311574,1739038233380,-500.0,0.00010958,2]
[352311576,1739038233390,-500.0,0.00010958,2]
[352311578,1739038233399,-504.24960657,0.00010958,2]
[352311580,1739038233408,-500.0,0.00010958,2]
[352311581,1739038233418,-500.0,0.00010958,2]
[352311583,1739038233427,-500.0,0.00010958,2]
[352311585,1739038233437,-500.0,0.00010958,2]
[352311587,1739038233446,-500.0,0.00010958,2]
[352311589,1739038233456,-500.0,0.00010958,2]
[352311591,1739038233465,-500.0,0.00010958,2]
[352311593,1739038233475,-440.26918304,0.00010958,2]
[352311595,1739038233484,-500.0,0.00010958,2]
[352311597,1739038233493,-500.0,0.00010958,2]
[352311599,1739038233502,-500.0,0.00010958,2]
[352311600,1739038233511,-331.01036333,0.00010958,2]
[352311602,1739038233521,-500.0,0.00010958,2]
[352311604,1739038233531,-500.0,0.00010958,2]
[352311606,1739038233541,-629.94877595,0.00010958,2]
[352311608,1739038233552,-511.50051567,0.00010958,2]
[352311610,1739038233561,-500.0,0.00010958,2]
[352311612,1739038233570,-500.0,0.00010958,2]
[352311614,1739038233579,-500.0,0.00010958,2]
[352311616,1739038233589,-500.0,0.00010958,2]
[352311618,1739038233598,-448.2476278,0.00010958,2]
[352311620,1739038233608,-500.0,0.00010958,2]
[352311622,1739038233618,-500.0,0.00010958,2]
[352311623,1739038233628,-500.0,0.00010958,2]
[352311625,1739038233637,-500.0,0.00010958,2]
[352311627,1739038233646,-500.0,0.00010958,2]
[352311629,1739038233656,-500.0,0.00010958,2]
[352311631,1739038233666,-500.0,0.00010958,2]
[352311633,1739038233675,-500.0,0.00010958,2]
[352311635,1739038233685,-500.0,0.00010958,2]
[352311637,1739038233695,-187.29399283,0.00010958,2]
[352311638,1739038233703,-486.90819191,0.00010958,2]
[352311640,1739038233713,-500.0,0.00010958,2]
[352311642,1739038233722,-500.0,0.00010958,2]
[352311644,1739038233731,-968.2,0.00010958,2]
[352311646,1739038233743,-500.0,0.00010958,2]
[352311648,1739038233757,-227.12990439,0.00010958,2]
[352311650,1739038233766,-500.0,0.00010958,2]
[352311652,1739038233776,-500.0,0.00010958,2]
[352311654,1739038233786,-500.0,0.00010958,2]
[352311656,1739038233796,-409.41605976,0.00010958,2]
[352311658,1739038233806,-504.51737676,0.00010958,2]
[352311659,1739038233815,-500.0,0.00010958,2]
[352311661,1739038233826,-500.0,0.00010958,2]
[352311682,1739038234044,-500.0,0.00010958,2]
[352311684,1739038234053,-500.0,0.00010958,2]
[352311686,1739038234063,-1228.38,0.00010958,2]
[352311688,1739038234073,-500.0,0.00010958,2]
[352311690,1739038234082,-500.0,0.00010958,2]
[352311691,1739038234092,-515.67555218,0.00010958,2]
[352311693,1739038234102,-500.0,0.00010958,2]
[352311695,1739038234111,-218.42389453,0.00010958,2]
[352311697,1739038234121,-500.0,0.00010958,2]
[352311699,1739038234130,-403.07353758,0.00010958,2]
[352311701,1739038234140,-500.0,0.00010958,2]
[352311703,1739038234150,-500.0,0.00010958,2]
[352311705,1739038234160,-500.0,0.00010958,2]
[352311707,1739038234169,-500.0,0.00010958,2]
[352311709,1739038234179,-352.50764116,0.00010958,2]
[352311711,1739038234189,-500.0,0.00010958,2]
[352311712,1739038234198,-1216.26,0.00010958,2]
[352311714,1739038234207,-218.24491378,0.00010958,2]
[352311716,1739038234217,-500.0,0.00010958,2]
[352311718,1739038234227,-500.0,0.00010958,2]
[352311720,1739038234238,-552.52656968,0.00010958,2]
[352311722,1739038234248,-500.0,0.00010958,2]
[352311724,1739038234258,-500.0,0.00010958,2]
[352311726,1739038234267,-500.0,0.00010958,2]
[352311727,1739038234276,-500.0,0.00010958,2]
[352311729,1739038234285,-500.0,0.00010958,2]
[352311731,1739038234296,-509.3311514,0.00010958,2]
[352311733,1739038234306,-500.0,0.00010958,2]
[352311735,1739038234315,-500.0,0.00010958,2]
[352311737,1739038234325,-682.78,0.00010958,2]
[352311739,1739038234335,-500.0,0.00010958,2]
[352311741,1739038234344,-500.0,0.00010958,2]
[352311742,1739038234353,-500.0,0.00010958,2]
[352311744,1739038234363,-500.0,0.00010958,2]
[352311746,1739038234372,-500.0,0.00010958,2]
[352311748,1739038234382,-500.0,0.00010958,2]
[352311750,1739038234392,-500.0,0.00010958,2]
[352311752,1739038234401,-500.0,0.00010958,2]
[352311754,1739038234411,-500.0,0.00010958,2]
[352311756,1739038234420,-500.0,0.00010958,2]
[352311758,1739038234430,-500.0,0.00010958,2]
[352311759,1739038234439,-318.25172612,0.00010958,2]
[352311761,1739038234449,-580.3228832,0.00010958,2]
[352311763,1739038234458,-500.0,0.00010958,2]
[352311765,1739038234467,-546.14904228,0.00010958,2]
[352311767,1739038234477,-500.0,0.00010958,2]
[352311769,1739038234486,-500.0,0.00010958,2]
[352311771,1739038234495,-501.81,0.00010958,2]
[352311773,1739038234505,-500.0,0.00010958,2]
[352311774,1739038234514,-500.0,0.00010958,2]
[352311776,1739038234524,-500.0,0.00010958,2]
[352311794,1739038234706,-500.0,0.00010958,2]
[352311796,1739038234715,-500.0,0.00010958,2]
[352311798,1739038234725,-500.0,0.00010958,2]
[352311800,1739038234734,-500.0,0.00010958,2]
[352311802,1739038234745,-500.0,0.00010958,2]
[352311804,1739038234757,-500.0,0.00010958,2]
[352311806,1739038234767,-500.0,0.00010958,2]
[352311808,1739038234776,-500.0,0.00010958,2]
[352311810,1739038234787,-500.0,0.00010958,2]
[352311811,1739038234797,-500.0,0.00010958,2]
[352311813,1739038234806,-500.0,0.00010958,2]
[352311815,1739038234815,-500.0,0.00010958,2]
[352311817,1739038234826,-500.0,0.00010958,2]
[352311819,1739038234837,-500.0,0.00010958,2]
[352311821,1739038234847,-500.0,0.00010958,2]
[352311823,1739038234856,-500.0,0.00010958,2]
[352311825,1739038234866,-500.0,0.00010958,2]
[352311827,1739038234876,-500.0,0.00010958,2]
[352311829,1739038234886,-500.0,0.00010958,2]
[352311831,1739038234895,-568.30179641,0.00010958,2]
[352311833,1739038234904,-506.18087667,0.00010958,2]
[352311835,1739038234914,-509.05502496,0.00010958,2]
[352311837,1739038234923,-874.53,0.00010958,2]
[352311838,1739038234933,-512.5450418,0.00010958,2]
[352311840,1739038234943,-500.0,0.00010958,2]
[352311842,1739038234952,-500.0,0.00010958,2]
[352311844,1739038234962,-500.0,0.00010958,2]
[352311846,1739038234971,-500.0,0.00010958,2]
[352311848,1739038234981,-505.74869842,0.00010958,2]
[352311850,1739038234990,-1180.9,0.00010958,2]
[352311852,1739038235000,-500.0,0.00010958,2]
[352311854,1739038235009,-548.91148274,0.00010958,2]
[352311856,1739038235019,-500.0,0.00010958,2]
[352311858,1739038235029,-500.0,0.00010958,2]
[352311860,1739038235039,-500.0,0.00010958,2]
[352311862,1739038235050,-500.0,0.00010958,2]
[352311864,1739038235059,-500.0,0.00010958,2]
[352311866,1739038235069,-631.09,0.00010958,2]
[352311868,1739038235078,-500.0,0.00010958,2]
[352311870,1739038235087,-248.29634287,0.00010958,2]
[352311871,1739038235097,-500.0,0.00010958,2]
[352311873,1739038235106,-500.0,0.00010958,2]
[352311875,1739038235115,-500.0,0.00010958,2]
[352311877,1739038235124,-500.0,0.00010958,2]
[352311879,1739038235133,-500.0,0.00010958,2]
[352311881,1739038235143,-500.0,0.00010958,2]
[352311883,1739038235152,-500.0,0.00010958,2]
[352311885,1739038235162,-205.70726899,0.00010958,2]
[352311887,1739038235171,-500.0,0.00010958,2]
[352311889,1739038235181,-502.16961548,0.00010958,2]
[352311891,1739038235190,-500.0,0.00010958,2]
[352311893,1739038235200,-500.0,0.00010958,2]
[352311895,1739038235210,-521.62,0.00010958,2]
[352311896,1739038235220,-500.0,0.00010958,2]
[352311898,1739038235230,-830.9,0.00010958,2]
[352311900,1739038235239,-500.0,0.00010958,2]
[352311902,1739038235248,-500.0,0.00010958,2]
[352311904,1739038235258,-500.0,0.00010958,2]
[352311906,1739038235268,-260.44724227,0.00010958,2]
[352311908,1739038235277,-500.0,0.00010958,2]
[352311910,1739038235287,-500.0,0.00010958,2]
[352311912,1739038235296,-500.0,0.00010958,2]
[352311914,1739038235306,-500.0,0.00010958,2]
[352311916,1739038235316,-500.0,0.00010958,2]
[352311918,1739038235326,-500.0,0.00010958,2]
[352311920,1739038235335,-610.55,0.00010958,2]
[352311922,1739038235345,-500.0,0.00010958,2]
[352311923,1739038235354,-443.29693061,0.00010958,2]
[352311925,1739038235363,-502.95719714,0.00010958,2]
[352311927,1739038235373,-500.0,0.00010958,2]
[352311929,1739038235382,-500.0,0.00010958,2]
[352311931,1739038235391,-500.0,0.00010958,2]
[352311932,1739038235400,-500.0,0.00010958,2]
[352311933,1739038235409,-971.17,0.00010958,2]
[352311934,1739038235418,-500.0,0.00010958,2]
[352311935,1739038235426,-500.0,0.00010958,2]
[352311936,1739038235435,-500.0,0.00010958,2]
[352311937,1739038235444,-500.0,0.00010958,2]
[352311938,1739038235453,-500.0,0.00010958,2]
[352311939,1739038235463,-500.0,0.00010958,2]
[352311940,1739038235472,-500.0,0.00010958,2]
[352311941,1739038235481,-500.0,0.00010958,2]
[352311942,1739038235490,-500.0,0.00010958,2]
[352311943,1739038235500,-500.0,0.00010958,2]
[352311944,1739038235509,-500.0,0.00010958,2]
[352311945,1739038235518,-500.0,0.00010958,2]
[352311946,1739038235527,-500.58466703,0.00010958,2]
[352311947,1739038235536,-500.0,0.00010958,2]
[352311948,1739038235546,-500.0,0.00010958,2]
[352311949,1739038235555,-500.0,0.00010958,2]
[352311950,1739038235564,-500.0,0.00010958,2]
[352311951,1739038235573,-612.24,0.00010958,2]
[352311952,1739038235583,-532.29,0.00010958,2]
[352311953,1739038235591,-500.0,0.00010958,2]
[352311954,1739038235600,-266.1518056,0.00010958,2]
[352311955,1739038235610,-500.0,0.00010958,2]
[352311956,1739038235619,-500.0,0.00010958,2]
[352311957,1739038235628,-500.0,0.00010958,2]
[352311958,1739038235637,-501.91863737,0.00010958,2]
[352311959,1739038235646,-500.0,0.00010958,2]
[352311960,1739038235655,-577.0,0.00010958,2]
[352311961,1739038235664,-500.0,0.00010958,2]
[352311962,1739038235673,-500.0,0.00010958,2]
[352311963,1739038235682,-549.88,0.00010958,2]
[352311964,1739038235691,-500.0,0.00010958,2]
[352311965,1739038235700,-500.0,0.00010958,2]
[352311966,1739038235709,-500.0,0.00010958,2]
[352311967,1739038235719,-500.0,0.00010958,2]
[352311968,1739038235727,-305.16282016,0.00010958,2]
[352311969,1739038235737,-500.0,0.00010958,2]
[352311970,1739038235747,-500.0,0.00010958,2]
[352311972,1739038235758,-500.0,0.00010958,2]
[352311973,1739038235767,-1064.8,0.00010958,2]
[352311975,1739038235775,-500.0,0.00010958,2]
[352311977,1739038235786,-500.0,0.00010958,2]
[352311979,1739038235796,-500.0,0.00010958,2]
[352311981,1739038235805,-793.06,0.00010958,2]
[352311983,1739038235814,-764.49,0.00010958,2]
[352311985,1739038235824,-500.0,0.00010958,2]
[352311987,1739038235834,-500.0,0.00010958,2]
[352311989,1739038235843,-500.0,0.00010958,2]
[352311991,1739038235853,-500.0,0.00010958,2]
[352311993,1739038235862,-3291.56,0.00010958,2]
[352311995,1739038235871,-500.0,0.00010958,2]
[352311997,1739038235881,-500.0,0.00010958,2]
[352311999,1739038235890,-500.0,0.00010958,2]
[352312001,1739038235899,-500.0,0.00010958,2]
[352312003,1739038235907,-561.72089405,0.00010958,2]
[352312005,1739038235917,-502.93999454,0.00010958,2]
[352312007,1739038235926,-538.98,0.00010958,2]
[352312009,1739038235935,-500.0,0.00010958,2]
[352312010,1739038235944,-501.38868866,0.00010958,2]
[352312012,1739038235953,-925.2,0.00010958,2]
[352312014,1739038235962,-211.6941032,0.00010958,2]
[352312016,1739038235971,-520.08,0.00010958,2]
[352312018,1739038235981,-500.0,0.00010958,2]
[352312020,1739038235990,-4535.82,0.00010958,2]
[352312022,1739038235999,-500.0,0.00010958,2]
[352312024,1739038236008,-500.0,0.00010958,2]
[352312026,1739038236018,-1528.69,0.00010958,2]
[352312028,1739038236027,-500.0,0.00010958,2]
[352312030,1739038236036,-500.0,0.00010958,2]
[352312032,1739038236045,-1033.83,0.00010958,2]
[352312034,1739038236055,-500.0,0.00010958,2]
[352312037,1739038236065,-500.0,0.00010958,2]
[352312039,1739038236074,-500.0,0.00010958,2]
[352312041,1739038236084,-186.55205861,0.00010958,2]
[352312043,1739038236093,-4296.82,0.00010958,2]
[352312045,1739038236102,-500.0,0.00010958,2]
[352312047,1739038236111,-500.0,0.00010958,2]
[352312049,1739038236120,-500.0,0.00010958,2]
[352312051,1739038236129,-500.0,0.00010958,2]
[352312053,1739038236138,-500.0,0.00010958,2]
[352312055,1739038236147,-35462.71,0.00010958,2]
[352312057,1739038236157,-679.52,0.00010958,2]
[352312059,1739038236166,-1103.68,0.00010958,2]
[352312061,1739038236175,-500.0,0.00010958,2]
[352312063,1739038236185,-500.0,0.00010958,2]
[352312065,1739038236194,-500.0,0.00010958,2]
[352312067,1739038236204,-1039.94,0.00010958,2]
[352312069,1739038236215,-500.0,0.00010958,2]
[352312071,1739038236223,-1991.53,0.00010958,2]
[352312073,1739038236232,-1991.53,0.00010958,2]
[352312075,1739038236241,-1991.53,0.00010958,2]
[352312077,1739038236250,-1991.53,0.00010958,2]
[352312079,1739038236259,-1991.53,0.00010958,2]
[352312080,1739038236268,-500.0,0.00010958,2]
[352312083,1739038236279,-1991.53,0.00010958,2]
[352312084,1739038236290,-1991.53,0.00010958,2]
[352312087,1739038236300,-1991.53,0.00010958,2]
[352312089,1739038236310,-1991.53,0.00010958,2]
[352312091,1739038236319,-1991.53,0.00010958,2]
[352312093,1739038236328,-500.0,0.00010958,2]
[352312095,1739038236337,-14824.55,0.00010958,2]
[352312097,1739038236346,-3232.86,0.00010958,2]
[352312099,1739038236355,-1887.7,0.00010958,2]
[352312101,1739038236365,-500.0,0.00010958,2]
[352312103,1739038236373,-500.0,0.00010958,2]
[352312105,1739038236382,-641.35714794,0.00010958,2]
[352312106,1739038236391,-500.0,0.00010958,2]
[352312108,1739038236400,-1340.2,0.00010958,2]
[352312110,1739038236409,-500.0,0.00010958,2]
[352312113,1739038236419,-500.0,0.00010958,2]
[352312115,1739038236428,-500.0,0.00010958,2]
[352312116,1739038236437,-500.0,0.00010958,2]
[352312118,1739038236446,-500.0,0.00010958,2]
[352312120,1739038236455,-1226.39,0.00010958,2]
[352312123,1739038236465,-500.0,0.00010958,2]
[352312125,1739038236473,-500.0,0.00010958,2]
[352312127,1739038236482,-500.0,0.00010958,2]
[352312128,1739038236491,-1555.89,0.00010958,2]
[352312130,1739038236500,-500.0,0.00010958,2]
[352312133,1739038236510,-439.66937966,0.00010958,2]
[352312135,1739038236520,-500.0,0.00010958,2]
[352312136,1739038236530,-1487.36,0.00010958,2]
[352312138,1739038236539,-600.0,0.00010958,2]
[352312141,1739038236549,-500.0,0.00010958,2]
[352312143,1739038236558,-500.0,0.00010958,2]
[352312144,1739038236567,-713.98,0.00010958,2]
[352312146,1739038236577,-500.0,0.00010958,2]
[352312147,1739038236586,-726.66,0.00010958,2]
[352312149,1739038236595,-515.55813512,0.00010958,2]
[352312150,1739038236605,-500.0,0.00010958,2]
[352312151,1739038236614,-500.0,0.00010958,2]
[352312152,1739038236623,-1414.83,0.00010958,2]
[352312153,1739038236633,-500.0,0.00010958,2]
[352312154,1739038236642,-500.0,0.00010958,2]
[352312155,1739038236651,-500.0,0.00010958,2]
[352312156,1739038236661,-500.0,0.00010958,2]
[352312157,1739038236670,-500.0,0.00010958,2]
[352312158,1739038236679,-500.0,0.00010958,2]
[352312160,1739038236688,-500.0,0.00010958,2]
[352312162,1739038236698,-500.0,0.00010958,2]
[352312164,1739038236707,-500.0,0.00010958,2]
[352312166,1739038236716,-1886.18,0.00010958,2]
[352312168,1739038236725,-500.0,0.00010958,2]
[352312170,1739038236733,-500.0,0.00010958,2]